fUSD/lending_fUSD_20240615
["ID","MTS","AMOUNT","RATE_DAILY","PERIOD"]
[329519756,1718412687437,-500.0,0.00022739,3]
[329519757,1718412687447,-500.0,0.00022739,3]
[329519758,1718412687469,-1512.33,0.00022739,3]
[329519759,1718412687507,-500.0,0.00022739,3]
[329519760,1718412687525,-500.0,0.00022739,3]
[329519761,1718412687544,-339.66212349,0.00022739,3]
[329519762,1718412687580,-500.0,0.00022739,3]
[329519763,1718412687592,-500.0,0.00022739,3]
[329519764,1718412687640,-500.0,0.00022739,3]
[329519765,1718412687664,-500.0,0.00022739,3]
[329519766,1718412687676,-500.0,0.00022739,3]
[329519767,1718412687744,-500.0,0.00022739,3]
[329519768,1718412687762,-500.0,0.00022739,3]
[329519769,1718412687782,-205.87,0.00022739,3]
[329519770,1718412687805,-500.0,0.00022739,3]
[329519771,1718412687836,-500.0,0.00022739,3]
[329519772,1718412687886,-500.0,0.00022739,3]
[329519773,1718412687933,-500.0,0.00022739,3]
[329519774,1718412687952,-500.0,0.00022739,3]
[329519775,1718412687972,-500.0,0.00022739,3]
[329519776,1718412688004,-500.0,0.00022739,3]
[329519777,1718412688026,-612.35,0.00022739,3]
[329519778,1718412688045,-500.0,0.00022739,3]
[329519779,1718412688058,-500.0,0.00022739,3]
[329519780,1718412688093,-500.0,0.00022739,3]
[329519781,1718412688115,-500.0,0.00022739,3]
[329519782,1718412688156,-1630.03,0.00022739,3]
[329519783,1718412688168,-500.0,0.00022739,3]
[329519784,1718412688181,-500.0,0.00022739,3]
[329519785,1718412688195,-500.0,0.00022739,3]
[329519786,1718412688211,-500.0,0.00022739,3]
[329519787,1718412688235,-500.0,0.00022739,3]
[329519788,1718412688251,-500.0,0.00022739,3]
[329519789,1718412688308,-500.0,0.00022739,3]
[329519790,1718412688358,-500.0,0.00022739,3]
[329519791,1718412688370,-500.0,0.00022739,3]
[329519792,1718412688380,-704.79,0.00022739,3]
[329519793,1718412688401,-196.13,0.00022739,3]
[329519794,1718412688414,-426.56,0.00022739,3]
[329519795,1718412688436,-292.4,0.00022739,3]
[329519796,1718412688447,-500.0,0.00022739,3]
[329519797,1718412688458,-500.0,0.00022739,3]
[329519798,1718412688469,-500.0,0.00022739,3]
[329519799,1718412688480,-500.0,0.00022739,3]
[329519800,1718412688494,-500.0,0.00022739,3]
[329519801,1718412688511,-500.0,0.00022739,3]
[329519802,1718412688526,-500.0,0.00022739,3]
[329519803,1718412688561,-221.69,0.00022739,3]
[329519804,1718412688571,-500.0,0.00022739,3]
[329519805,1718412688581,-500.0,0.00022739,3]
[329519806,1718412688594,-535.76,0.00022739,3]
[329519807,1718412688615,-500.0,0.00022739,3]
[329519808,1718412688652,-500.0,0.00022739,3]
[329519809,1718412688683,-391.03423883,0.00022739,3]
[329519810,1718412688758,-500.0,0.00022739,3]
[329519811,1718412688813,-519.91,0.00022739,3]
[329519812,1718412688893,-562.19,0.00022739,3]
[329519813,1718412688933,-528.56,0.00022739,3]
[329519814,1718412688968,-500.0,0.00022739,3]
[329519815,1718412688988,-500.0,0.00022739,3]
[329519816,1718412689003,-586.94,0.00022739,3]
[329519817,1718412689036,-500.0,0.00022739,3]
[329519818,1718412689077,-500.0,0.00022739,3]
[329519819,1718412689105,-162.77,0.00022739,3]
[329519820,1718412689131,-500.0,0.00022739,3]
[329519821,1718412689183,-156.98,0.00022739,3]
[329519822,1718412689213,-500.0,0.00022739,3]
[329519823,1718412689278,-500.0,0.00022739,3]
[329519824,1718412689290,-500.0,0.00022739,3]
[329519825,1718412689328,-500.0,0.00022739,3]
[329519826,1718412689380,-500.0,0.00022739,3]
[329519827,1718412689412,-1018.16,0.00022739,3]
[329519828,1718412689445,-500.0,0.00022739,3]
[329519829,1718412689482,-350.0,0.00022739,3]
[329519830,1718412689501,-500.0,0.00022739,3]
[329519831,1718412689540,-531.76,0.00022739,3]
[329519832,1718412689563,-367.58,0.00022739,3]
[329519833,1718412689604,-500.0,0.00022739,3]
[329519834,1718412689617,-500.0,0.00022739,3]
[329519835,1718412689632,-589.32,0.00022739,3]
[329519836,1718412689643,-500.0,0.00022739,3]
[329519837,1718412689665,-1610.28,0.00022739,3]
[329519838,1718412689675,-500.0,0.00022739,3]
[329519839,1718412689688,-500.0,0.00022739,3]
[329519840,1718412689698,-500.0,0.00022739,3]
[329519841,1718412689760,-1063.56,0.00022739,3]
[329519842,1718412689781,-5983.08124322,0.00022772,2]
[329519843,1718412689798,-150.0,0.0002285,2]
[329519844,1718412689834,-150.0,0.0002285,2]
[329519845,1718412689876,-150.98671,0.0002285,2]
[329519846,1718412689917,-1927.4612,0.00022911,2]
[329519847,1718412689946,-350.0,0.00022946,2]
[329519848,1718412689969,-1087.79771715,0.00023009,2]
[329519849,1718412689992,-500.0,0.00023011,3]
[329519850,1718412690002,-629.48,0.00023011,3]
[329519851,1718412690066,-500.0,0.00023011,3]
[329519852,1718412690086,-500.0,0.00023011,3]
[329519853,1718412690135,-500.0,0.00023011,3]
[329519854,1718412690161,-535.04,0.00023011,3]
[329519855,1718412690188,-500.0,0.00023011,3]
[329519856,1718412690220,-500.0,0.00023011,3]
[329519857,1718412690241,-500.0,0.00023011,3]
[329519858,1718412690255,-500.0,0.00023011,3]
[329519859,1718412690266,-500.0,0.00023011,3]
[329519860,1718412690306,-500.0,0.00023011,3]
[329519861,1718412690327,-213.16409094,0.00023011,3]
[329519862,1718412690351,-305.59,0.00023011,3]
[329519863,1718412690368,-500.0,0.00023011,3]
[329519864,1718412690436,-573.3,0.00023011,3]
[329519865,1718412690449,-398.34,0.00023011,3]
[329519866,1718412690460,-500.0,0.00023011,3]
[329519867,1718412690481,-578.85806884,0.00023011,3]
[329519868,1718412690492,-500.0,0.00023011,3]
[329519869,1718412690517,-497.39,0.00023011,3]
[329519870,1718412690529,-500.0,0.00023011,3]
[329519871,1718412690540,-520.74,0.00023011,3]
[329519872,1718412690564,-510.05336547,0.00023011,3]
[329519873,1718412690597,-500.0,0.00023011,3]
[329519874,1718412690617,-500.0,0.00023011,3]
[329519875,1718412690630,-500.0,0.00023011,3]
[329519876,1718412690680,-203.57,0.00023011,3]
[329519877,1718412690743,-500.0,0.00023011,3]
[329519878,1718412690782,-500.0,0.00023011,3]
[329519879,1718412690793,-500.0,0.00023011,3]
[329519880,1718412690804,-500.0,0.00023011,3]
[329519881,1718412690826,-500.0,0.00023011,3]
[329519882,1718412690872,-500.0,0.00023011,3]
[329519883,1718412690889,-500.0,0.00023011,3]
[329519884,1718412690921,-587.92899229,0.00023011,3]
[329519885,1718412690937,-500.0,0.00023011,3]
[329519886,1718412690982,-638.49770409,0.00023011,3]
[329519887,1718412690996,-308.88703108,0.00023011,3]
[329519888,1718412691007,-500.0,0.00023011,3]
[329519889,1718412691028,-500.0,0.00023011,3]
[329519890,1718412691050,-500.0,0.00023011,3]
[329519891,1718412691078,-500.0,0.00023011,3]
[329519892,1718412691092,-500.0,0.00023011,3]
[329519893,1718412691109,-500.0,0.00023011,3]
[329519894,1718412691123,-500.0,0.00023011,3]
[329519895,1718412691151,-500.0,0.00023011,3]
[329519896,1718412691179,-500.0,0.00023011,3]
[329519897,1718412691221,-500.0,0.00023011,3]
[329519898,1718412691237,-500.0,0.00023011,3]
[329519899,1718412691250,-500.0,0.00023011,3]
[329519900,1718412691296,-500.0,0.00023011,3]
[329519901,1718412691338,-500.0,0.00023011,3]
[329519902,1718412691368,-500.0,0.00023011,3]
[329519903,1718412691392,-500.0,0.00023011,3]
[329519904,1718412691406,-160.02,0.00023011,3]
[329519905,1718412691433,-500.0,0.00023011,3]
[329519906,1718412691475,-500.0,0.00023011,3]
[329519907,1718412691491,-640.95664591,0.00023011,3]
[329519908,1718412691508,-500.0,0.00023011,3]
[329519909,1718412691529,-531.12330984,0.00023011,3]
[329519910,1718412691572,-228.999309,0.00023011,3]
[329519911,1718412691585,-500.0,0.00023011,3]
[329519912,1718412691602,-180.20625805,0.00023011,3]
[329519913,1718412691620,-500.0,0.00023011,3]
[329519914,1718412691648,-500.0,0.00023011,3]
[329519915,1718412691673,-500.0,0.00023011,3]
[329519916,1718412691686,-500.0,0.00023011,3]
[329519917,1718412691722,-500.0,0.00023011,3]
[329519918,1718412691796,-500.0,0.00023011,3]
[329519919,1718412691812,-209.79,0.00023011,3]
[329519920,1718412691840,-500.0,0.00023011,3]
[329519921,1718412691851,-500.0,0.00023011,3]
[329519922,1718412691908,-500.0,0.00023011,3]
[329519923,1718412691938,-246.87958023,0.00023011,3]
[329519924,1718412691985,-363.40316696,0.00023011,3]
[329519925,1718412691998,-500.0,0.00023011,3]
[329519926,1718412692013,-500.0,0.00023011,3]
[329519927,1718412692025,-500.0,0.00023011,3]
[329519928,1718412692055,-500.0,0.00023011,3]
[329519929,1718412692068,-500.0,0.00023011,3]
[329519930,1718412692082,-496.38557403,0.00023011,3]
[329519931,1718412692107,-500.0,0.00023012,3]
[329519932,1718412692119,-500.0,0.00023013,3]
[329519933,1718412692133,-500.0,0.00023013,3]
[329519934,1718412692152,-500.0,0.00023013,3]
[329519935,1718412692164,-252.4,0.00023013,3]
[329519936,1718412692178,-500.0,0.00023013,3]
[329519937,1718412692205,-500.0,0.00023013,3]
[329519938,1718412692268,-169.584413,0.00023013,3]
[329519939,1718412692318,-500.0,0.00023013,3]
[329519940,1718412692344,-500.0,0.00023013,3]
[329519941,1718412692394,-500.0,0.00023013,3]
[329519942,1718412692411,-500.0,0.00023013,3]
[329519943,1718412692422,-500.0,0.00023013,3]
[329519944,1718412692432,-1622.23,0.00023013,3]
[329519945,1718412692447,-500.0,0.00023013,3]
[329519946,1718412692459,-500.0,0.00023013,3]
[329519947,1718412692607,-500.0,0.00023013,3]
[329519948,1718412692624,-475.62,0.00023013,3]
[329519949,1718412692645,-500.0,0.00023013,3]
[329519950,1718412692658,-492.00747608,0.00023013,3]
[329519951,1718412692671,-500.0,0.00023013,3]
[329519952,1718412692683,-500.0,0.00023013,3]
[329519953,1718412692695,-177.81515618,0.00023013,3]
[329519954,1718412692708,-1512.33,0.00023013,3]
[329519955,1718412692720,-500.0,0.00023013,3]
[329519956,1718412692733,-495.48,0.00023013,3]
[329519957,1718412692745,-500.0,0.00023013,3]
[329519958,1718412692776,-500.0,0.00023013,3]
[329519959,1718412692787,-500.0,0.00023013,3]
[329519960,1718412692798,-500.0,0.00023013,3]
[329519961,1718412692812,-397.73,0.00023013,3]
[329519962,1718412692828,-500.0,0.00023013,3]
[329519963,1718412692845,-500.0,0.00023013,3]
[329519964,1718412692857,-500.0,0.00023013,3]
[329519965,1718412692873,-500.0,0.00023013,3]
[329519966,1718412692884,-500.0,0.00023013,3]
[329519967,1718412692910,-500.0,0.00023013,3]
[329519968,1718412692929,-500.0,0.00023013,3]
[329519969,1718412692939,-500.0,0.00023013,3]
[329519970,1718412692969,-500.0,0.00023013,3]
[329519971,1718412692992,-500.0,0.00023013,3]
[329519972,1718412693004,-612.35,0.00023013,3]
[329519973,1718412693036,-500.0,0.00023013,3]
[329519974,1718412693063,-500.0,0.00023013,3]
[329519975,1718412693088,-500.0,0.00023013,3]
[329519976,1718412693098,-1630.03,0.00023013,3]
[329519977,1718412693109,-486.26,0.00023013,3]
[329519978,1718412693125,-195.14,0.00023013,3]
[329519979,1718412693136,-500.0,0.00023013,3]
[329519980,1718412693146,-500.0,0.00023013,3]
[329519981,1718412693200,-500.0,0.00023013,3]
[329519982,1718412693212,-367.30747913,0.00023013,3]
[329519983,1718412693224,-500.0,0.00023013,3]
[329519984,1718412693256,-500.0,0.00023013,3]
[329519985,1718412693267,-500.0,0.00023013,3]
[329519986,1718412693279,-704.79,0.00023013,3]
[329519987,1718412693301,-500.0,0.00023013,3]
[329519988,1718412693314,-206.35,0.00023013,3]
[329519989,1718412693336,-500.0,0.00023013,3]
[329519990,1718412693348,-500.0,0.00023013,3]
[329519991,1718412693370,-500.0,0.00023013,3]
[329519992,1718412693387,-500.0,0.00023013,3]
[329519993,1718412693409,-500.0,0.00023013,3]
[329519994,1718412693433,-500.0,0.00023013,3]
[329519995,1718412693443,-500.0,0.00023013,3]
[329519996,1718412693470,-288.7,0.00023013,3]
[329519997,1718412693486,-500.0,0.00023013,3]
[329519998,1718412693520,-500.0,0.00023013,3]
[329519999,1718412693531,-519.91,0.00023013,3]
[329520000,1718412693558,-562.19,0.00023013,3]
[329520001,1718412693577,-528.56,0.00023013,3]
[329520002,1718412693617,-458.9051368,0.00023013,3]
[329520003,1718412693645,-199.6,0.00023013,3]
[329520004,1718412693664,-586.94,0.00023013,3]
[329520005,1718412693678,-500.0,0.00023013,3]
[329520006,1718412693698,-151.91567307,0.00023013,3]
[329520007,1718412693710,-500.0,0.00023013,3]
[329520008,1718412693766,-197.96,0.00023013,3]
[329520009,1718412693778,-500.0,0.00023013,3]
[329520010,1718412693821,-632.09565288,0.00023013,3]
[329520011,1718412693860,-500.0,0.00023013,3]
[329520012,1718412693891,-500.0,0.00023013,3]
[329520013,1718412693913,-1018.16,0.00023013,3]
[329520014,1718412693930,-500.0,0.00023013,3]
[329520015,1718412693948,-500.0,0.00023013,3]
[329520016,1718412693976,-500.0,0.00023013,3]
[329520017,1718412694001,-500.0,0.00023013,3]
[329520018,1718412694068,-589.32,0.00023013,3]
[329520019,1718412694119,-500.0,0.00023013,3]
[329520020,1718412694159,-1610.28,0.00023013,3]
[329520021,1718412694188,-500.0,0.00023013,3]
[329520022,1718412694199,-500.0,0.00023013,3]
[329520023,1718412694272,-500.0,0.00023013,3]
[329520024,1718412694310,-1063.56,0.00023013,3]
[329520025,1718412694337,-1001.2126,0.0002305,2]
[329520026,1718412694352,-500.0,0.00023186,2]
[329520027,1718412694368,-25337.0405,0.00023186,2]
[329520028,1718412694419,-1000.0,0.00023186,2]
[329520029,1718412694441,-359.279,0.00023198,2]
[329520030,1718412694457,-1830.0,0.00023198,2]
[329520031,1718412694476,-1261.0,0.00023198,2]
[329520032,1718412694494,-437.0,0.00023198,2]
[329520033,1718412694536,-1650.0,0.00023198,2]
[329520034,1718412694582,-165.0,0.00023198,2]
[329520035,1718412694622,-616.0,0.00023198,2]
[329520036,1718412694636,-1303.0,0.00023198,2]
[329520037,1718412694696,-3171.0,0.00023198,2]
[329520038,1718412694733,-546.0,0.00023198,2]
[329520039,1718412694768,-1980.0,0.00023198,2]
[329520040,1718412694797,-5787.0,0.00023198,2]
[329520041,1718412694824,-290.0,0.00023198,2]
[329520042,1718412694847,-5157.0,0.00023198,2]
[329520043,1718412694869,-38079.0,0.00023198,2]
[329520044,1718412694884,-1467.0,0.00023198,2]
[329520045,1718412694915,-150.192,0.00023198,2]
[329520046,1718412694948,-1116.521,0.00023198,2]
[329520047,1718412695006,-451.38756837,0.00023285,2]
[329520048,1718412695047,-500.0,0.00023285,3]
[329520049,1718412695064,-500.0,0.00023285,3]
[329520050,1718412695128,-500.0,0.00023285,3]
[329520051,1718412695151,-365.85536706,0.00023285,3]
[329520052,1718412695175,-521.5,0.00023285,3]
[329520053,1718412695186,-500.0,0.00023285,3]
[329520054,1718412695212,-500.0,0.00023285,3]
[329520055,1718412695260,-500.0,0.00023285,3]
[329520056,1718412695273,-500.0,0.00023285,3]
[329520057,1718412695288,-500.0,0.00023285,3]
[329520058,1718412695318,-500.0,0.00023285,3]
[329520059,1718412695362,-500.0,0.00023285,3]
[329520060,1718412695438,-500.0,0.00023285,3]
[329520061,1718412695450,-500.0,0.00023285,3]
[329520062,1718412695460,-500.0,0.00023285,3]
[329520063,1718412695493,-380.58,0.00023285,3]
[329520064,1718412695525,-500.0,0.00023285,3]
[329520065,1718412695548,-500.0,0.00023285,3]
[329520066,1718412695624,-500.0,0.00023285,3]
[329520067,1718412695635,-618.05,0.00023285,3]
[329520068,1718412695651,-500.0,0.00023285,3]
[329520069,1718412695663,-410.73691151,0.00023285,3]
[329520070,1718412695675,-500.0,0.00023285,3]
[329520071,1718412695718,-500.0,0.00023285,3]
[329520072,1718412695730,-500.0,0.00023285,3]
[329520073,1718412695754,-500.0,0.00023285,3]
[329520074,1718412695826,-551.98,0.00023285,3]
[329520075,1718412695850,-500.0,0.00023285,3]
[329520076,1718412695884,-618.32428029,0.00023285,3]
[329520077,1718412695949,-500.0,0.00023285,3]
[329520078,1718412695974,-500.0,0.00023285,3]
[329520079,1718412695996,-500.0,0.00023285,3]
[329520080,1718412696031,-500.0,0.00023285,3]
[329520081,1718412696093,-500.0,0.00023285,3]
[329520082,1718412696199,-500.0,0.00023285,3]
[329520083,1718412696214,-500.0,0.00023285,3]
[329520084,1718412696258,-500.0,0.00023285,3]
[329520085,1718412696273,-500.0,0.00023285,3]
[329520086,1718412696284,-500.0,0.00023285,3]
[329520087,1718412696321,-262.9,0.00023285,3]
[329520088,1718412696386,-500.0,0.00023285,3]
[329520089,1718412696400,-162.59276731,0.00023285,3]
[329520090,1718412696436,-500.0,0.00023285,3]
[329520091,1718412696448,-500.0,0.00023285,3]
[329520092,1718412696464,-500.0,0.00023285,3]
[329520093,1718412696486,-500.0,0.00023285,3]
[329520094,1718412696502,-500.0,0.00023285,3]
[329520095,1718412696518,-500.0,0.00023285,3]
[329520096,1718412696535,-500.0,0.00023285,3]
[329520097,1718412696546,-500.0,0.00023285,3]
[329520098,1718412696576,-500.0,0.00023285,3]
[329520099,1718412696586,-500.0,0.00023285,3]
[329520100,1718412696597,-500.0,0.00023285,3]
[329520101,1718412696638,-500.0,0.00023285,3]
[329520102,1718412696654,-326.96,0.00023285,3]
[329520103,1718412696664,-500.0,0.00023285,3]
[329520104,1718412696675,-500.0,0.00023285,3]
[329520105,1718412696695,-500.0,0.00023285,3]
[329520106,1718412696707,-500.0,0.00023286,3]
[329520107,1718412696739,-500.0,0.00023287,3]
[329520108,1718412696758,-500.0,0.00023287,3]
[329520109,1718412696769,-612.18,0.00023287,3]
[329520110,1718412696788,-500.0,0.00023287,3]
[329520111,1718412696804,-500.0,0.00023287,3]
[329520112,1718412696821,-500.0,0.00023287,3]
[329520113,1718412696833,-500.0,0.00023287,3]
[329520114,1718412696844,-507.39515255,0.00023287,3]
[329520115,1718412696857,-500.0,0.00023287,3]
[329520116,1718412696878,-500.0,0.00023287,3]
[329520117,1718412696891,-1622.23,0.00023287,3]
[329520118,1718412696910,-500.0,0.00023287,3]
[329520119,1718412696923,-500.0,0.00023287,3]
[329520120,1718412696992,-571.90604548,0.00023287,3]
[329520121,1718412697012,-500.0,0.00023287,3]
[329520122,1718412697029,-500.0,0.00023287,3]
[329520123,1718412697057,-500.0,0.00023287,3]
[329520124,1718412697084,-1512.33,0.00023287,3]
[329520125,1718412697095,-500.0,0.00023287,3]
[329520126,1718412697128,-500.0,0.00023287,3]
[329520127,1718412697141,-500.0,0.00023287,3]
[329520128,1718412697179,-500.0,0.00023287,3]
[329520129,1718412697203,-500.0,0.00023287,3]
[329520130,1718412697228,-413.75,0.00023287,3]
[329520131,1718412697264,-500.0,0.00023287,3]
[329520132,1718412697278,-500.0,0.00023287,3]
[329520133,1718412697291,-500.0,0.00023287,3]
[329520134,1718412697303,-500.0,0.00023287,3]
[329520135,1718412697339,-500.0,0.00023287,3]
[329520136,1718412697380,-500.0,0.00023287,3]
[329520137,1718412697408,-500.0,0.00023287,3]
[329520138,1718412697421,-153.92,0.00023287,3]
[329520139,1718412697440,-500.0,0.00023287,3]
[329520140,1718412697486,-612.35,0.00023287,3]
[329520141,1718412697506,-500.0,0.00023287,3]
[329520142,1718412697518,-500.0,0.00023287,3]
[329520143,1718412697542,-182.39,0.00023287,3]
[329520144,1718412697554,-1630.03,0.00023287,3]
[329520145,1718412697566,-500.0,0.00023287,3]
[329520146,1718412697579,-500.0,0.00023287,3]
[329520147,1718412697593,-500.0,0.00023287,3]
[329520148,1718412697605,-518.09,0.00023287,3]
[329520149,1718412697657,-500.0,0.00023287,3]
[329520150,1718412697669,-500.0,0.00023287,3]
[329520151,1718412697681,-704.79,0.00023287,3]
[329520152,1718412697693,-243.24,0.00023287,3]
[329520153,1718412697732,-500.0,0.00023287,3]
[329520154,1718412697743,-500.0,0.00023287,3]
[329520155,1718412697796,-500.0,0.00023287,3]
[329520156,1718412697809,-500.0,0.00023287,3]
[329520157,1718412697824,-500.0,0.00023287,3]
[329520158,1718412697873,-500.0,0.00023287,3]
[329520159,1718412697904,-410.15,0.00023287,3]
[329520160,1718412697915,-500.0,0.00023287,3]
[329520161,1718412697961,-500.0,0.00023287,3]
[329520162,1718412697971,-519.91,0.00023287,3]
[329520163,1718412697982,-562.19,0.00023287,3]
[329520164,1718412697998,-528.56,0.00023287,3]
[329520165,1718412698009,-586.94,0.00023287,3]
[329520166,1718412698046,-500.0,0.00023287,3]
[329520167,1718412698068,-500.0,0.00023287,3]
[329520168,1718412698137,-500.0,0.00023287,3]
[329520169,1718412698161,-500.0,0.00023287,3]
[329520170,1718412698175,-1018.16,0.00023287,3]
[329520171,1718412698186,-500.0,0.00023287,3]
[329520172,1718412698197,-500.0,0.00023287,3]
[329520173,1718412698216,-500.0,0.00023287,3]
[329520174,1718412698227,-500.0,0.00023287,3]
[329520175,1718412698244,-589.32,0.00023287,3]
[329520176,1718412698256,-500.0,0.00023287,3]
[329520177,1718412698266,-1610.28,0.00023287,3]
[329520178,1718412698277,-500.0,0.00023287,3]
[329520179,1718412698301,-1063.56,0.00023287,3]
[329520180,1718412698313,-395.54297139,0.00023494,2]
[329520181,1718412698328,-274.66,0.000235,2]
[329520182,1718412698355,-553.74161227,0.00023559,3]
[329520183,1718412698392,-500.0,0.00023559,3]
[329520184,1718412698426,-494.53661556,0.00023559,3]
[329520185,1718412698439,-500.0,0.00023559,3]
[329520186,1718412698462,-281.6,0.00023559,3]
[329520187,1718412698492,-636.74461236,0.00023559,3]
[329520188,1718412698574,-500.0,0.00023559,3]
[329520189,1718412698592,-503.13,0.00023559,3]
[329520190,1718412698606,-500.0,0.00023559,3]
[329520191,1718412698628,-500.0,0.00023559,3]
[329520192,1718412698646,-500.0,0.00023559,3]
[329520193,1718412698659,-516.31,0.00023559,3]
[329520194,1718412698725,-500.0,0.00023559,3]
[329520195,1718412698738,-500.0,0.00023559,3]
[329520196,1718412698765,-500.0,0.00023559,3]
[329520197,1718412698792,-500.0,0.00023559,3]
[329520198,1718412698803,-500.0,0.00023559,3]
[329520199,1718412698832,-500.0,0.00023559,3]
[329520200,1718412698848,-500.0,0.00023559,3]
[329520201,1718412698886,-500.0,0.00023559,3]
[329520202,1718412698899,-285.06,0.00023559,3]
[329520203,1718412698935,-500.0,0.00023559,3]
[329520204,1718412698975,-500.0,0.00023559,3]
[329520205,1718412699001,-500.0,0.00023559,3]
[329520206,1718412699019,-500.0,0.00023559,3]
[329520207,1718412699032,-500.0,0.00023559,3]
[329520208,1718412699060,-500.0,0.00023559,3]
[329520209,1718412699076,-500.0,0.00023559,3]
[329520210,1718412699120,-500.0,0.00023559,3]
[329520211,1718412699132,-500.0,0.00023559,3]
[329520212,1718412699201,-500.0,0.00023559,3]
[329520213,1718412699224,-500.0,0.00023559,3]
[329520214,1718412699249,-500.0,0.00023559,3]
[329520215,1718412699261,-590.3615392,0.00023559,3]
[329520216,1718412699273,-500.0,0.00023559,3]
[329520217,1718412699308,-500.0,0.00023559,3]
[329520218,1718412699329,-500.0,0.00023559,3]
[329520219,1718412699340,-500.0,0.00023559,3]
[329520220,1718412699362,-500.0,0.00023559,3]
[329520221,1718412699378,-500.0,0.00023559,3]
[329520222,1718412699410,-404.97,0.00023559,3]
[329520223,1718412699450,-500.0,0.00023559,3]
[329520224,1718412699463,-500.0,0.00023559,3]
[329520225,1718412699488,-296.96073101,0.00023559,3]
[329520226,1718412699512,-500.0,0.00023559,3]
[329520227,1718412699535,-412.09903339,0.00023559,3]
[329520228,1718412699547,-500.0,0.00023559,3]
[329520229,1718412699561,-500.0,0.00023559,3]
[329520230,1718412699574,-500.0,0.0002356,3]
[329520231,1718412699584,-500.0,0.00023561,3]
[329520232,1718412699597,-191.04450164,0.00023561,3]
[329520233,1718412699608,-500.0,0.00023561,3]
[329520234,1718412699619,-500.0,0.00023561,3]
[329520235,1718412699651,-500.0,0.00023561,3]
[329520236,1718412699662,-575.26,0.00023561,3]
[329520237,1718412699692,-500.0,0.00023561,3]
[329520238,1718412699727,-500.0,0.00023561,3]
[329520239,1718412699753,-1622.23,0.00023561,3]
[329520240,1718412699778,-500.0,0.00023561,3]
[329520241,1718412699833,-555.74,0.00023561,3]
[329520242,1718412699902,-263.98390599,0.00023561,3]
[329520243,1718412699932,-500.0,0.00023561,3]
[329520244,1718412699971,-500.0,0.00023561,3]
[329520245,1718412700001,-1512.33,0.00023561,3]
[329520246,1718412700065,-500.0,0.00023561,3]
[329520247,1718412700082,-500.0,0.00023561,3]
[329520248,1718412700104,-324.77,0.00023561,3]
[329520249,1718412700126,-500.0,0.00023561,3]
[329520250,1718412700154,-500.0,0.00023561,3]
[329520251,1718412700238,-500.0,0.00023561,3]
[329520252,1718412700282,-500.0,0.00023561,3]
[329520253,1718412700331,-500.0,0.00023561,3]
[329520254,1718412700388,-500.0,0.00023561,3]
[329520255,1718412700461,-500.0,0.00023561,3]